bitfinex/quotes_BTCUSD_20250308
["timestamp","ask_amount","ask_price","bid_price","bid_amount"]
[1741458947614,0.02468587,86268.0,86266.0,0.011592]
[1741458947842,0.02468587,86268.0,86266.0,0.02453075]
[1741458948446,0.02468587,86268.0,86267.0,0.197061]
[1741458948652,0.02468587,86268.0,86267.0,0.20999613]
[1741458948852,0.02368587,86268.0,86267.0,0.20999613]
[1741458949342,0.02468587,86268.0,86267.0,0.20999613]
[1741458949541,0.02368587,86268.0,86267.0,0.20999613]
[1741458950912,0.02368587,86268.0,86267.0,0.01293513]
[1741458951299,0.02368587,86268.0,86263.0,0.011592]
[1741458951453,0.22074587,86268.0,86267.0,0.01293301]
[1741458951747,0.22074587,86268.0,86260.0,0.011592]
[1741458952170,0.22074587,86268.0,86261.0,0.21001566]
[1741458952392,0.03527687,86268.0,86261.0,0.21001566]
[1741458953021,0.03527687,86268.0,86262.0,0.011592]
[1741458953223,0.02468587,86268.0,86262.0,0.02453145]
[1741458953424,0.02468587,86268.0,86265.0,0.197066]
[1741458953634,0.02368587,86268.0,86265.0,0.197066]
[1741458953834,0.02468587,86268.0,86266.0,0.0129354]
[1741458954494,0.02468587,86268.0,86264.0,0.011592]
[1741458954704,0.02468587,86268.0,86267.0,0.01293419]
[1741458954906,0.04287272,86268.0,86265.0,0.197066]
[1741458955116,0.04287272,86268.0,86267.0,0.01293419]
[1741458955321,0.04287272,86268.0,86266.0,0.0245274]
[1741458955522,0.04187272,86268.0,86267.0,0.01293419]
[1741458955920,0.04187272,86268.0,86267.0,0.02452519]
[1741458956326,0.04187272,86268.0,86267.0,0.01293419]
[1741458956539,0.04187272,86268.0,86265.0,0.185474]
[1741458956789,0.04187272,86268.0,86266.0,0.0129354]
[1741458957020,0.23893272,86268.0,86266.0,0.0129354]
[1741458957587,0.23893272,86268.0,86267.0,0.01293366]
[1741458957829,0.23893272,86268.0,86259.0,0.011592]
[1741458957944,0.04187272,86268.0,86267.0,0.01293366]
[1741458958176,0.04187272,86268.0,86264.0,0.011592]
[1741458958384,0.04187272,86268.0,86267.0,0.01293366]
[1741458958626,0.04187272,86268.0,86266.0,0.011592]
[1741458958951,0.04187272,86268.0,86267.0,0.01293233]
[1741458959612,0.04187272,86268.0,86265.0,0.197065]
[1741458959746,0.04187272,86268.0,86267.0,0.01293233]
[1741458960194,0.04187272,86268.0,86249.0,0.185508]
[1741458960402,0.04187272,86268.0,86267.0,0.011591]
[1741458960606,0.04187272,86268.0,86267.0,0.094091]
[1741458960758,0.04187272,86268.0,86267.0,0.10702333]
[1741458962052,0.01818685,86268.0,86267.0,0.10702333]
[1741458963835,0.01818685,86268.0,86267.0,0.22106333]
[1741458964653,0.02309387,86269.0,86267.0,0.22106333]
[1741458965059,0.02309387,86269.0,86267.0,0.40653333]
[1741458965994,0.02309387,86269.0,86268.0,0.011591]
[1741458966202,0.02309387,86269.0,86268.0,0.02452212]
[1741458967303,0.02409387,86269.0,86268.0,0.02452212]
[1741458967510,0.02309387,86269.0,86268.0,0.02452212]
[1741458967870,0.04128035,86269.0,86268.0,0.02452212]
[1741458968098,0.04228035,86269.0,86268.0,0.02452212]
[1741458969734,0.01918648,86269.0,86268.0,0.02452212]
[1741458969913,0.01918648,86269.0,86268.0,0.07192212]
[1741458970336,0.01918648,86269.0,86268.0,0.15372212]
[1741458970678,0.01918648,86269.0,86268.0,0.15488116]
[1741458970890,0.01918648,86269.0,86268.0,0.15372212]
[1741458971092,0.01918648,86269.0,86268.0,0.15412846]
[1741458971290,0.01918648,86269.0,86268.0,0.15372212]
[1741458971490,0.01818648,86269.0,86268.0,0.15372212]
[1741458971700,0.00017,86271.0,86270.0,0.011591]
[1741458971923,0.00017,86271.0,86270.0,0.09495627]
[1741458972126,0.00017,86271.0,86270.0,0.10788496]
[1741458972337,0.00017,86271.0,86270.0,0.10747862]
[1741458974040,0.00017,86271.0,86270.0,0.15487862]
[1741458975015,0.0183544,86271.0,86270.0,0.15371969]
[1741458979003,0.0183544,86271.0,86270.0,0.15886482]
[1741458983081,0.0183544,86271.0,86270.0,0.16002375]
[1741458983298,0.0183544,86271.0,86270.0,0.16030075]
[1741458983486,0.0183544,86271.0,86270.0,0.7172415]
[1741458983815,0.00017,86271.0,86270.0,0.71608257]
[1741458984184,0.00017,86271.0,86270.0,0.71580557]
[1741458984389,0.00017,86271.0,86270.0,0.71608257]
[1741458984596,0.00017,86271.0,86270.0,0.71580557]
[1741458985198,0.00017,86271.0,86270.0,0.74108257]
[1741458985558,0.00017,86279.0,86278.0,0.320337]
[1741458985810,0.00017,86279.0,86278.0,0.99123775]
[1741458986013,0.00017,86279.0,86278.0,1.00928714]
[1741458987236,0.00017,86279.0,86278.0,1.00828714]
[1741458987863,0.00117,86279.0,86278.0,1.01528714]
[1741458988286,0.01935154,86279.0,86278.0,1.01528714]
[1741458991835,0.01935154,86279.0,86278.0,1.11528714]
[1741458994611,0.00017,86279.0,86278.0,1.10828714]
[1741458994845,0.00117,86279.0,86278.0,1.11228714]
[1741458997981,0.01935077,86279.0,86278.0,1.11228714]
[1741458998185,0.01835077,86279.0,86278.0,1.10828714]
[1741458999167,0.01935077,86279.0,86278.0,1.11228714]
[1741459001279,0.01835077,86279.0,86278.0,1.10828714]
[1741459001764,0.01935077,86279.0,86278.0,1.11228714]
[1741459002191,0.01935077,86279.0,86278.0,1.13728714]
[1741459002566,0.01835077,86279.0,86278.0,1.13328714]
[1741459003009,0.01935077,86279.0,86278.0,1.13728714]
[1741459004587,0.00117,86279.0,86278.0,1.13728714]
[1741459005357,0.00017,86279.0,86278.0,1.13328714]
[1741459005536,0.00117,86279.0,86278.0,1.13728714]
[1741459005941,0.00017,86279.0,86278.0,1.13328714]
[1741459006143,0.00117,86279.0,86278.0,1.13728714]
[1741459007355,0.00117,86279.0,86278.0,1.43762694]
[1741459007555,0.0001699,86281.0,86280.0,0.05113085]
[1741459007750,9e-07,86281.0,86280.0,1.0446893]
[1741459007951,9e-07,86281.0,86280.0,1.06156044]
[1741459008206,0.01818032,86281.0,86280.0,1.06156044]
[1741459008833,0.01918032,86281.0,86280.0,1.06556044]
[1741459009042,0.01818032,86281.0,86280.0,1.06156044]
[1741459009461,0.01918032,86281.0,86280.0,1.06556044]
[1741459009696,0.01818032,86281.0,86280.0,1.06156044]
[1741459010201,0.01918032,86281.0,86280.0,1.06556044]
[1741459011245,3.2e-07,86281.0,86280.0,1.06556044]
[1741459011684,0.0001699,86286.0,86285.0,0.53656085]
[1741459011888,0.0001699,86286.0,86285.0,0.61076085]
[1741459012088,0.0001699,86286.0,86285.0,1.17116731]
[1741459012839,0.0001699,86286.0,86285.0,1.17121208]
[1741459013079,0.0001699,86286.0,86285.0,1.17021208]
[1741459014826,0.0001699,86286.0,86285.0,1.17721208]
[1741459015669,0.0001699,86286.0,86285.0,1.15421208]
[1741459016362,0.0001699,86286.0,86285.0,1.26805208]
[1741459017872,0.0001699,86286.0,86285.0,1.26105208]
[1741459018307,0.0001699,86286.0,86285.0,1.27660107]
[1741459018514,0.0001699,86286.0,86285.0,1.29260107]
[1741459018895,0.0001699,86286.0,86285.0,1.29960107]
[1741459019097,0.01834895,86286.0,86285.0,1.29960107]
[1741459019678,9.5e-07,86286.0,86285.0,1.32460107]
[1741459019888,9.5e-07,86286.0,86285.0,1.37150107]
[1741459020086,0.02534776,86319.0,86318.0,0.196946]
[1741459020246,0.0648,86321.0,86320.0,0.011584]
[1741459020247,0.0668,86321.0,86320.0,0.011584]
[1741459020842,0.0668,86321.0,86320.0,0.02951645]
[1741459021045,0.02017729,86321.0,86318.0,0.310786]
[1741459021245,0.02017729,86321.0,86320.0,0.01793245]
[1741459021450,0.02017729,86321.0,86318.0,0.31083077]
[1741459021652,0.02017729,86321.0,86320.0,0.01793245]
[1741459021856,0.02017729,86321.0,86319.0,0.02951815]
[1741459022062,0.02017729,86321.0,86320.0,0.02951645]
[1741459022854,0.01917729,86321.0,86320.0,0.02951645]
[1741459023271,0.001,86321.0,86320.0,0.02951645]
[1741459023653,0.003,86321.0,86320.0,0.02951645]
[1741459024069,0.0468,86324.0,86323.0,0.011584]
[1741459024299,0.1575935,86330.0,86325.0,0.011584]
[1741459024498,0.002,86328.0,86326.0,0.196926]
[1741459024700,0.0001698,86330.0,86329.0,0.011583]
[1741459025167,0.0001698,86330.0,86329.0,0.02949302]
[1741459025347,0.0001698,86330.0,86329.0,0.14333302]
[1741459026109,0.01834384,86330.0,86329.0,0.14333302]
[1741459029374,0.01834384,86330.0,86329.0,0.14449127]
[1741459029550,0.01834384,86330.0,86329.0,0.22379124]
[1741459029926,0.01834384,86330.0,86329.0,0.22263302]
[1741459030142,0.01834384,86330.0,86329.0,0.14333302]
[1741459030986,0.01834384,86330.0,86329.0,0.14433302]
[1741459031420,0.01834384,86330.0,86329.0,0.14333302]
[1741459031628,0.01834384,86330.0,86329.0,0.14933302]
[1741459031810,0.01834384,86330.0,86329.0,0.14333302]
[1741459032231,0.16749436,86334.0,86333.0,0.196911]
[1741459032443,0.0001699,86336.0,86334.0,0.011582]
[1741459033058,0.0001699,86336.0,86334.0,0.02943532]
[1741459034479,0.0001699,86336.0,86334.0,0.03343532]
[1741459035698,0.0001699,86336.0,86334.0,0.02943532]
[1741459036130,0.0001699,86336.0,86334.0,0.03243532]
[1741459037515,0.0001699,86336.0,86334.0,0.02943532]
[1741459037718,0.0001699,86336.0,86334.0,0.03243532]
[1741459037917,0.0001699,86336.0,86334.0,0.02943532]
[1741459038441,0.0001699,86336.0,86334.0,0.03243532]
[1741459039180,0.0001699,86336.0,86334.0,0.14619532]
[1741459040874,0.0001699,86336.0,86334.0,3.2e-07]
[1741459040875,1.0260109,86335.0,86334.0,3.2e-07]
[1741459041102,1.0260109,86335.0,86306.0,0.00031142]
[1741459041103,0.311742,86319.0,86306.0,0.11376]
[1741459041328,0.611742,86319.0,86306.0,0.11376]
[1741459041529,0.930043,86319.0,86304.0,0.11376]
[1741459041774,0.611742,86319.0,86304.0,0.11376]
[1741459041982,0.930962,86319.0,86304.0,0.11376]
[1741459042188,0.930962,86319.0,86285.0,0.011589]
[1741459042419,0.94913981,86319.0,86303.0,0.11376]
[1741459042622,0.94913981,86319.0,86318.0,0.00104477]
[1741459043310,1.16368066,86319.0,86318.0,0.00104477]
[1741459043624,0.94856085,86319.0,86290.0,0.11376]
[1741459043884,0.197007,86291.0,86290.0,0.11382272]
[1741459045521,0.197007,86291.0,86290.0,0.11482272]
[1741459045735,0.0930898,86293.0,86290.0,0.11482272]
[1741459045939,0.197007,86291.0,86290.0,0.11482272]
[1741459046558,0.21518958,86291.0,86290.0,0.11482272]
[1741459046765,0.24031916,86291.0,86290.0,0.11482272]
[1741459046976,0.21518958,86291.0,86290.0,0.11482272]
[1741459047183,0.21518958,86291.0,86290.0,0.11382272]
[1741459047393,0.21518958,86291.0,86290.0,0.11482272]
[1741459047598,0.21518958,86291.0,86290.0,0.11382272]
[1741459047748,0.02018258,86291.0,86290.0,0.11382272]
[1741459047950,0.02018258,86291.0,86290.0,0.11482272]
[1741459048158,0.03177058,86291.0,86290.0,0.11382272]
[1741459052300,0.02018258,86291.0,86290.0,0.11382272]
[1741459052485,0.03177058,86291.0,86290.0,0.12817063]
[1741459053734,0.01818258,86291.0,86290.0,0.12817063]
[1741459053938,0.01818258,86291.0,86290.0,0.13975863]
[1741459054802,0.03906099,86297.0,86291.0,0.011588]
[1741459055022,0.002,86291.0,86290.0,0.12817063]
[1741459055227,0.002,86291.0,86290.0,0.11382272]
[1741459055423,0.002,86291.0,86290.0,0.12851023]
[1741459056126,0.013588,86291.0,86290.0,0.12851023]
[1741459057157,0.002,86291.0,86290.0,0.12851023]
[1741459057516,0.02018227,86291.0,86290.0,0.12851023]
[1741459057928,0.02018227,86291.0,86290.0,0.14009823]
[1741459057929,0.01818227,86291.0,86290.0,0.14009823]
[1741459058132,0.02018227,86291.0,86290.0,0.12851023]
[1741459061162,0.002,86291.0,86290.0,0.12851023]
[1741459061754,0.013588,86291.0,86290.0,0.12851023]
[1741459068520,0.013588,86291.0,86290.0,0.01475023]
[1741459068967,0.013588,86291.0,86290.0,0.00040232]
[1741459069185,0.0001699,86293.0,86290.0,0.00040232]
[1741459069400,0.0001699,86293.0,86290.0,0.01481627]
[1741459069573,0.1855849,86293.0,86290.0,0.00040232]
[1741459069770,0.011588,86291.0,86290.0,0.00040232]
[1741459071336,0.02977113,86291.0,86290.0,0.00040232]
[1741459072275,0.14771712,86294.0,86290.0,0.00040232]
[1741459072531,0.185415,86293.0,86290.0,0.00040232]
[1741459072939,0.011588,86291.0,86290.0,0.00040232]
[1741459073619,0.422488,86291.0,86290.0,0.00040232]
[1741459077563,0.797818,86291.0,86290.0,0.00040232]
[1741459080029,0.911578,86291.0,86290.0,0.00040232]
[1741459085607,1.892569,86291.0,86290.0,0.00040232]
[1741459086942,1.693448,86291.0,86290.0,0.00040232]
[1741459087172,2.046922,86291.0,86290.0,0.00040232]
[1741459088415,2.06510735,86291.0,86290.0,0.00040232]
[1741459088879,2.03029535,86291.0,86290.0,0.00040232]
[1741459089476,1.98419535,86291.0,86290.0,0.00040232]
[1741459089616,1.96011135,86291.0,86290.0,0.00040232]
[1741459090441,2.47961135,86291.0,86290.0,0.00040232]
[1741459094723,2.461426,86291.0,86290.0,0.00040232]
[1741459095717,3.986926,86291.0,86290.0,0.00040232]
[1741459097258,3.873166,86291.0,86290.0,0.00040232]
[1741459097462,3.578588,86291.0,86290.0,0.00040232]
[1741459098164,3.59677282,86291.0,86290.0,0.00040232]
[1741459104814,3.578588,86291.0,86290.0,0.00040232]
[1741459106233,2.053088,86291.0,86290.0,0.00040232]
[1741459106450,1.120588,86291.0,86290.0,0.00040232]
[1741459106748,0.831088,86291.0,86290.0,0.00040232]
[1741459108296,0.84927219,86291.0,86290.0,0.00040232]
[1741459112756,0.32977219,86291.0,86290.0,0.00040232]
[1741459114821,0.311588,86291.0,86290.0,0.00040232]
[1741459115909,0.1855849,86293.0,86290.0,0.00040232]
[1741459116970,0.011588,86291.0,86290.0,0.00040232]
[1741459117124,0.011588,86291.0,86290.0,0.01485814]
[1741459117727,0.02977215,86291.0,86290.0,0.01485814]
[1741459119977,0.02977215,86291.0,86290.0,0.00040232]
[1741459121433,1.24372215,86291.0,86290.0,0.00040232]
[1741459122269,0.92139915,86291.0,86290.0,0.00040232]
[1741459122400,1.69495715,86291.0,86290.0,0.00040232]
[1741459122608,1.97266815,86291.0,86290.0,0.00040232]
[1741459124835,1.954484,86291.0,86290.0,0.00040232]
[1741459127438,1.837088,86291.0,86290.0,0.00040232]
[1741459128009,1.85527303,86291.0,86290.0,0.08120232]
[1741459129323,1.85544293,86291.0,86290.0,0.08120232]
[1741459132331,1.55544293,86291.0,86290.0,0.00040232]
[1741459132531,1.95877893,86291.0,86290.0,0.00040232]
[1741459132712,1.9405939,86291.0,86290.0,0.00040232]
[1741459133541,2.0470939,86291.0,86290.0,0.00040232]
[1741459133876,2.4600939,86291.0,86290.0,0.00040232]
[1741459133994,0.9345939,86291.0,86290.0,0.00040232]
[1741459134199,1.2345939,86291.0,86290.0,0.00040232]
[1741459134402,0.7150939,86291.0,86290.0,0.00040232]
[1741459137074,0.73327958,86291.0,86290.0,0.00040232]
[1741459139110,2.25877958,86291.0,86290.0,0.00040232]
[1741459139531,2.77827958,86291.0,86290.0,0.00040232]
[1741459142634,2.77827958,86291.0,86280.0,0.0003398]
[1741459142635,0.01159,86281.0,86280.0,0.0003398]
[1741459142842,0.01159,86279.0,86278.0,0.10007618]
[1741459143083,2.41683248,86279.0,86278.0,0.10007618]
[1741459146191,2.41683248,86279.0,86278.0,0.08188838]
[1741459147467,2.43502028,86279.0,86278.0,0.08188838]
[1741459148431,0.32986728,86279.0,86278.0,0.08188838]
[1741459148635,3.05791228,86279.0,86278.0,0.08188838]
[1741459148903,0.32986728,86279.0,86278.0,0.08188838]
[1741459149047,3.10873828,86279.0,86278.0,0.08188838]
[1741459149279,2.60269228,86279.0,86278.0,0.08188838]
[1741459150331,2.55027028,86279.0,86278.0,0.08188838]
[1741459151256,2.55919523,86279.0,86278.0,0.08188838]
[1741459152901,2.54526723,86279.0,86278.0,0.08188838]
[1741459154897,2.50579323,86279.0,86278.0,0.08188838]
[1741459155756,3.72779323,86279.0,86278.0,0.08188838]
[1741459156004,3.62120123,86279.0,86278.0,0.06370037]
[1741459156217,3.48260943,86279.0,86278.0,0.06370037]
[1741459157423,3.65954343,86279.0,86278.0,0.06370037]
[1741459158446,2.13404343,86279.0,86278.0,0.06370037]
[1741459159000,1.67443216,86279.0,86278.0,0.06370037]
[1741459159557,2.91310116,86279.0,86278.0,0.06370037]
[1741459161595,2.91310116,86279.0,86278.0,0.14480037]
[1741459161596,3.60579216,86279.0,86278.0,0.14480037]
[1741459161817,3.71349216,86279.0,86278.0,0.14480037]
[1741459164877,3.71366206,86279.0,86278.0,0.14480037]
[1741459165276,3.71366206,86279.0,86278.0,0.06370037]
[1741459168090,3.45666206,86279.0,86278.0,0.06370037]
[1741459168340,3.19416206,86279.0,86278.0,0.06370037]
[1741459168716,1.97216206,86279.0,86278.0,0.06370037]
[1741459171329,3.71366206,86279.0,86278.0,0.06370037]
[1741459174434,2.49166206,86279.0,86278.0,0.06370037]
[1741459176944,2.38396206,86279.0,86278.0,0.06370037]
[1741459177144,3.69797306,86279.0,86278.0,0.06370037]
[1741459177346,3.61306606,86279.0,86278.0,0.06370037]
[1741459179399,3.32292206,86279.0,86278.0,0.06370037]
[1741459179636,4.05161606,86279.0,86278.0,0.06370037]
[1741459180057,4.02940306,86279.0,86278.0,0.06370037]
[1741459183893,3.89405006,86279.0,86278.0,0.06370037]
[1741459184943,3.99789418,86279.0,86278.0,0.06370037]
[1741459187573,3.70980618,86279.0,86278.0,0.06370037]
[1741459187776,4.33921318,86279.0,86278.0,0.06370037]
[1741459188623,4.23536906,86279.0,86278.0,0.06370037]
[1741459189000,4.19928606,86279.0,86278.0,0.06370037]
[1741459189739,3.88769606,86279.0,86278.0,0.06370037]
[1741459190048,3.89928606,86279.0,86278.0,0.06370037]
[1741459190390,3.50397206,86279.0,86278.0,0.06370037]
[1741459190630,3.64596706,86279.0,86278.0,0.13900037]
[1741459191656,3.76261506,86279.0,86278.0,0.13900037]
[1741459191911,3.74442733,86279.0,86278.0,0.13900037]
[1741459192152,3.71059133,86279.0,86278.0,0.13900037]
[1741459192623,2.48859133,86279.0,86278.0,0.13900037]
[1741459193080,2.47390133,86279.0,86278.0,0.13900037]
[1741459194126,0.94840133,86279.0,86278.0,0.13900037]
[1741459195223,0.96658857,86279.0,86278.0,0.13900037]
[1741459202094,0.85846157,86279.0,86278.0,0.13900037]
[1741459202305,0.33896157,86279.0,86278.0,0.13900037]
[1741459202725,0.00025938,86279.0,86278.0,0.37114737]
[1741459202890,0.00025938,86279.0,86278.0,0.18570037]
[1741459204867,0.00025938,86279.0,86278.0,0.19729037]
[1741459205219,0.00025938,86279.0,86278.0,0.32580187]
[1741459207174,0.01844392,86279.0,86278.0,0.32580187]
[1741459211544,0.01844392,86279.0,86278.0,0.31421187]
[1741459212871,2.01925012,86285.0,86279.0,0.0824]
[1741459213181,2.01925012,86285.0,86281.0,0.0824]
[1741459213182,0.185434,86284.0,86281.0,0.0824]
[1741459213629,0.185434,86284.0,86283.0,0.0824]
[1741459213880,0.185434,86284.0,86283.0,0.09731455]
[1741459214235,1.54378712,86285.0,86283.0,0.09731455]
[1741459219025,1.74080812,86285.0,86283.0,0.09731455]
[1741459219409,1.74080812,86285.0,86283.0,0.0824]
[1741459219949,1.75899267,86285.0,86283.0,0.0824]
[1741459221519,0.01159,86279.0,86278.0,0.06370037]
[1741459221735,0.31159,86279.0,86278.0,0.06370037]
[1741459226152,0.32977632,86279.0,86278.0,0.06370037]
[1741459227503,0.53623932,86279.0,86278.0,0.06370037]
[1741459227631,0.51793032,86279.0,86278.0,0.06370037]
[1741459230295,0.67882732,86279.0,86278.0,0.06370037]
[1741459231348,0.62057732,86279.0,86278.0,0.06370037]
[1741459231553,0.30746584,86279.0,86278.0,0.06370037]
[1741459231892,0.302391,86279.0,86278.0,0.06370037]
[1741459233086,0.795891,86279.0,86278.0,0.06370037]
[1741459233419,1.095891,86279.0,86278.0,0.06370037]
[1741459235032,1.114077,86279.0,86278.0,0.06370037]
[1741459235661,1.1142468,86279.0,86278.0,0.06370037]
[1741459238953,0.8234458,86279.0,86278.0,0.06370037]
[1741459243790,0.8234458,86279.0,86278.0,0.14120037]
[1741459247740,0.8052598,86279.0,86278.0,0.14120037]
[1741459250675,0.8234448,86279.0,86278.0,0.14120037]
[1741459251084,0.3299448,86279.0,86278.0,0.14120037]
[1741459251281,0.0299448,86279.0,86278.0,0.14120037]
[1741459251486,0.3299448,86279.0,86278.0,0.15553477]
[1741459255890,0.185442,86280.0,86278.0,0.15553477]
[1741459256092,0.01818492,86279.0,86278.0,0.15553477]
[1741459256542,0.185442,86280.0,86278.0,0.15553477]
[1741459256952,0.01159,86279.0,86278.0,0.15553477]
[1741459257930,0.21547792,86285.0,86278.0,0.16712477]
[1741459258290,0.00022355,86285.0,86284.0,0.011589]
[1741459258481,0.00022355,86285.0,86284.0,0.256189]
[1741459258638,0.00022355,86285.0,86284.0,0.27049861]
[1741459261390,0.0001699,86291.0,86290.0,0.317709]
[1741459261798,0.0001699,86291.0,86290.0,0.33199484]
[1741459276603,0.0001699,86291.0,86290.0,0.87439484]
[1741459280374,0.0001699,86291.0,86290.0,1.18893569]
[1741459280568,0.0001699,86291.0,86290.0,1.21393569]
[1741459282212,0.0001699,86294.0,86290.0,1.21393569]
[1741459282213,7e-07,86294.0,86293.0,0.4713]
[1741459282429,0.1488,86333.0,86332.0,0.011583]
[1741459282660,0.1488,86333.0,86330.0,0.196918]
[1741459282661,0.0001699,86335.0,86330.0,0.310238]
[1741459282895,0.011583,86333.0,86332.0,0.01418362]
[1741459283098,0.011583,86332.0,86331.0,0.01417693]
[1741459283384,0.011583,86332.0,86330.0,0.11332]
[1741459283612,0.011583,86332.0,86331.0,0.01417693]
[1741459285268,0.011583,86333.0,86331.0,0.01417693]
[1741459285466,0.02388036,86335.0,86331.0,0.02575993]
[1741459285604,0.20920536,86335.0,86331.0,0.01417693]
[1741459285845,0.011582,86334.0,86331.0,0.01417693]
[1741459286458,0.196911,86333.0,86331.0,0.01417693]
[1741459286798,0.011583,86333.0,86331.0,0.01417693]
[1741459287187,0.196913,86333.0,86331.0,0.01417693]
[1741459287321,0.011583,86332.0,86331.0,0.01417693]
[1741459287535,0.011583,86333.0,86331.0,0.01417693]
[1741459288473,0.02388036,86335.0,86331.0,0.02575993]
[1741459288680,0.0001699,86335.0,86334.0,0.011582]
[1741459288834,0.0001699,86335.0,86334.0,0.196908]
[1741459289241,0.0001699,86335.0,86334.0,0.2110786]
[1741459291699,0.0001699,86335.0,86334.0,0.2917786]
[1741459291908,0.0001699,86335.0,86334.0,0.2957786]
[1741459292305,0.0001699,86335.0,86334.0,0.2917786]
[1741459292886,0.0001699,86335.0,86334.0,0.2957786]
[1741459293266,0.0001699,86335.0,86334.0,0.0181706]
[1741459293682,0.0001699,86335.0,86334.0,0.004]
[1741459293901,0.0001699,86335.0,86334.0,0.01814628]
[1741459294126,0.0001699,86335.0,86332.0,0.011583]
[1741459294322,0.0001699,86335.0,86334.0,0.01938186]
[1741459295039,0.0001699,86335.0,86334.0,0.01438186]
[1741459295211,0.0001699,86335.0,86334.0,0.02996386]
[1741459295635,0.0001699,86335.0,86334.0,0.01438186]
[1741459296067,0.0001699,86335.0,86334.0,0.01638186]
[1741459297179,0.0117519,86335.0,86334.0,0.01438186]
[1741459297484,0.0001699,86335.0,86334.0,0.002]
[1741459297716,0.3109759,86335.0,86334.0,0.01638186]
[1741459297913,0.011585,86312.0,86308.0,0.11336]
[1741459298117,0.011585,86318.0,86309.0,0.011586]
[1741459298326,0.1447256,86319.0,86309.0,0.011586]
[1741459299153,0.185367,86316.0,86311.0,0.005]
[1741459299912,0.011585,86315.0,86311.0,0.005]
[1741459300339,0.011585,86315.0,86310.0,0.1134]
[1741459300602,0.011583,86327.0,86315.0,0.011585]
[1741459300806,0.196932,86324.0,86318.0,0.011585]
[1741459301015,0.011584,86323.0,86318.0,0.011585]
[1741459301234,0.011583,86327.0,86320.0,0.196939]
[1741459301440,0.011583,86327.0,86320.0,0.011584]
[1741459301667,0.196926,86326.0,86320.0,0.011584]
[1741459301865,0.0001699,86335.0,86329.0,0.185337]
[1741459302077,0.02341331,86333.0,86331.0,0.196915]
[1741459302407,0.00011603,86333.0,86331.0,0.011583]
[1741459302832,0.00011603,86333.0,86328.0,0.088683]
[1741459303390,0.00011603,86333.0,86329.0,0.011583]
[1741459303851,0.00011603,86333.0,86330.0,0.185335]
[1741459304093,0.00011603,86333.0,86330.0,0.196918]
[1741459304310,0.00011603,86333.0,86332.0,0.011583]
[1741459304762,0.00011603,86333.0,86330.0,0.011583]
[1741459304970,0.00011603,86333.0,86316.0,0.185365]
[1741459304971,0.011584,86325.0,86322.0,0.0771]
[1741459305178,0.011583,86326.0,86322.0,0.0771]
[1741459305387,0.011584,86325.0,86323.0,0.11424]
[1741459305599,0.011584,86324.0,86323.0,0.11424]
[1741459307983,0.011584,86325.0,86323.0,0.11424]
[1741459308239,0.011583,86326.0,86323.0,0.11424]
[1741459309391,0.011583,86328.0,86323.0,0.125824]
[1741459309620,0.011583,86326.0,86323.0,0.11424]
[1741459310178,0.011584,86324.0,86323.0,0.11424]
[1741459312781,0.19696,86312.0,86306.0,0.011586]
[1741459312989,0.011584,86320.0,86311.0,0.011586]
[1741459312990,0.011585,86317.0,86311.0,0.011586]
[1741459313221,0.011584,86319.0,86314.0,0.011585]
[1741459313782,0.196946,86318.0,86312.0,0.011585]
[1741459315446,0.011584,86320.0,86315.0,0.185367]
[1741459316275,0.011584,86319.0,86313.0,0.196955]
[1741459316838,0.011585,86317.0,86312.0,0.1]
[1741459317044,0.185365,86316.0,86312.0,0.1]
[1741459317244,0.19695,86316.0,86312.0,0.1]
[1741459317445,0.011585,86316.0,86312.0,0.1]
[1741459317674,0.196951,86316.0,86312.0,0.1]
[1741459317877,0.011585,86317.0,86312.0,0.1]
[1741459318178,0.011585,86317.0,86312.0,0.296958]
[1741459318837,0.19414615,86322.0,86312.0,0.296958]
[1741459318838,0.3,86326.0,86321.0,0.0797]
[1741459319253,0.185348,86324.0,86321.0,0.0797]
[1741459319821,0.185352,86322.0,86321.0,0.0797]
[1741459319972,0.196936,86322.0,86321.0,0.0797]
[1741459320376,0.011584,86323.0,86321.0,0.0797]
[1741459321516,0.0117538,86324.0,86321.0,0.0797]
[1741459321718,0.1971018,86324.0,86321.0,0.0797]
[1741459321973,0.0001698,86324.0,86321.0,0.265054]
[1741459322322,0.0001698,86324.0,86321.0,0.0797]
[1741459323421,0.0001698,86324.0,86323.0,0.011584]
[1741459323829,0.0001698,86324.0,86323.0,0.125504]
[1741459323973,0.0001698,86324.0,86323.0,0.203104]
[1741459325405,0.0001698,86324.0,86323.0,0.21759635]
[1741459325949,0.0001698,86324.0,86323.0,0.26719635]
[1741459347886,0.0001698,86324.0,86323.0,0.80959635]
[1741459354565,0.0001698,86324.0,86323.0,0.56847635]
[1741459355114,0.0001698,86324.0,86323.0,0.86710635]
[1741459355871,0.0001698,86324.0,86323.0,0.67017235]
[1741459356276,0.0117538,86324.0,86323.0,0.01449235]
[1741459356644,0.196934,86323.0,86319.0,0.0003398]
[1741459356842,0.14342094,86325.0,86319.0,0.0003398]
[1741459357037,0.011584,86324.0,86319.0,0.0119238]
[1741459357286,0.196934,86323.0,86319.0,0.0003398]
[1741459357630,0.011584,86320.0,86319.0,0.0003398]
[1741459365044,0.0087947,86322.0,86319.0,0.0003398]
[1741459365245,0.196934,86323.0,86319.0,0.0003398]
[1741459367022,0.011584,86322.0,86319.0,0.0003398]
[1741459370421,0.011584,86322.0,86320.0,0.01493001]
[1741459371152,0.196938,86321.0,86320.0,0.01493001]
[1741459381163,0.609838,86321.0,86320.0,0.01493001]
[1741459381401,0.3,86320.0,86319.0,0.0003398]
[1741459381630,0.311584,86320.0,86319.0,0.0003398]
[1741459381853,0.75811585,86320.0,86319.0,0.0003398]
[1741459382511,0.82311585,86320.0,86319.0,0.0003398]
[1741459382714,1.16611585,86320.0,86319.0,0.0003398]
[1741459382961,0.809856,86313.0,86312.0,0.1000006]
[1741459383228,5.75199685,86313.0,86312.0,0.1000006]
[1741459383481,5.59667485,86313.0,86312.0,0.1000006]
[1741459383914,5.58240385,86313.0,86312.0,0.1000006]
[1741459384681,5.32570036,86313.0,86312.0,0.1000006]
[1741459384845,4.10420036,86313.0,86312.0,0.1000006]
[1741459385192,4.05758236,86313.0,86312.0,0.1000006]
[1741459385617,4.08128323,86313.0,86312.0,0.1000006]
[1741459386699,4.79490623,86313.0,86312.0,0.1000006]
[1741459387336,4.70555923,86313.0,86312.0,0.1000006]
[1741459387861,3.20884323,86313.0,86312.0,0.1000006]
[1741459389872,2.92364023,86313.0,86312.0,0.1000006]
[1741459393041,3.36025338,86313.0,86312.0,0.1000006]
[1741459393181,3.61117138,86313.0,86312.0,0.1000006]
[1741459395394,3.47357338,86313.0,86312.0,0.1000006]